bitfinex/quotes_SOLUSD_20250726
["timestamp","ask_amount","ask_price","bid_price","bid_amount"]
[1753501448827,29.12939074,186.1,186.09,0.06]
[1753501449050,26.03,186.1,186.09,0.06]
[1753501449729,26.7,186.1,186.09,0.06]
[1753501449928,26.03,186.1,186.09,0.06]
[1753501452660,26.7,186.1,186.09,0.06]
[1753501453961,26.03,186.1,186.09,0.06]
[1753501459263,26.7,186.1,186.09,0.06]
[1753501465479,34.49284587,186.1,186.09,0.06]
[1753501474005,29.11939074,186.1,186.09,0.06]
[1753501477013,32.71824002,186.1,186.09,0.06]
[1753501478992,36.71631969,186.1,186.09,0.06]
[1753501479226,32.71824002,186.1,186.09,0.06]
[1753501481119,36.71580085,186.1,186.09,0.06]
[1753501481312,32.71824002,186.1,186.09,0.06]
[1753501488404,32.04824002,186.1,186.09,0.06]
[1753501488604,29.62884928,186.1,186.09,0.06]
[1753501488805,32.04824002,186.1,186.09,0.06]
[1753501490919,32.72824002,186.1,186.09,0.06]
[1753501491308,28.44939074,186.1,186.09,0.06]
[1753501491509,32.04426811,186.1,186.09,0.06]
[1753501492324,28.44939074,186.1,186.09,0.06]
[1753501493228,29.12939074,186.1,186.09,0.06]
[1753501494636,32.72429615,186.1,186.09,0.06]
[1753501497421,30.30490541,186.1,186.09,0.06]
[1753501497627,32.72429615,186.1,186.09,0.06]
[1753501497826,29.12939074,186.1,186.09,0.06]
[1753501498437,28.44939074,186.1,186.09,0.06]
[1753501498921,26.03,186.1,186.09,0.33]
[1753501500309,0.03,186.1,186.09,0.33]
[1753501505250,0.03,186.1,186.09,0.06]
[1753501506049,0.75,186.1,186.09,0.06]
[1753501508137,3.16939074,186.1,186.09,0.06]
[1753501510054,29.16939074,186.1,186.09,0.06]
[1753501510244,32.76183424,186.1,186.09,0.06]
[1753501519767,32.75995668,186.1,186.09,0.06]
[1753501520355,49.54464065,186.1,186.09,0.06]
[1753501520583,96.46220361,186.1,186.09,0.06]
[1753501521076,0.14216157,186.09,186.07,0.06]
[1753501521255,16.78468397,186.07,186.06,0.06]
[1753501521461,57.16407471,186.07,186.06,0.06]
[1753501521765,60.75464065,186.07,186.06,0.06]
[1753501523746,63.55706911,186.07,186.06,0.06]
[1753501530670,63.55706911,186.07,186.05,0.06]
[1753501530874,23.51464065,186.06,186.05,0.06]
[1753501532477,16.78468397,186.05,186.04,0.06]
[1753501532800,60.77464065,186.05,186.04,0.06]
[1753501537499,60.77464065,186.05,186.0,0.06]
[1753501537700,45.20407471,186.02,186.0,0.06]
[1753501537875,86.05464065,186.02,186.0,0.06]
[1753501538073,86.72464065,186.02,186.0,0.06]
[1753501538480,83.13407471,186.02,186.0,0.06]
[1753501539299,16.78468397,186.01,186.0,0.06]
[1753501539481,33.1243052,186.01,186.0,0.06]
[1753501539794,33.1243052,186.01,185.99,0.06]
[1753501539974,66.81163767,186.0,185.99,0.06]
[1753501540673,71.05929242,186.0,185.99,0.06]
[1753501544190,73.85896953,186.0,185.99,0.06]
[1753501544591,69.61131478,186.0,185.99,0.06]
[1753501545398,2.41939074,186.02,185.99,0.39]
[1753501545616,12.80895079,186.08,185.99,0.39]
[1753501545617,2.41939074,186.03,185.99,0.39]
[1753501545911,28.41939074,186.02,185.99,0.39]
[1753501546891,29.78668215,186.02,185.99,0.39]
[1753501547095,26.0,186.02,185.99,0.39]
[1753501547301,29.78668215,186.02,185.99,0.39]
[1753501548292,29.78668215,186.02,186.0,0.33]
[1753501548493,26.0,186.01,186.0,0.33]
[1753501550081,26.0,186.01,185.99,0.39]
[1753501550895,29.78668215,186.02,185.99,0.39]
[1753501554307,29.78668215,186.02,186.0,0.33]
[1753501555395,26.0,186.02,186.0,0.33]
[1753501555602,29.78668215,186.02,186.0,0.33]
[1753501556309,29.78668215,186.02,185.99,0.39]
[1753501557803,29.78668215,186.02,185.99,0.06]
[1753501558003,30.45668215,186.02,185.99,0.06]
[1753501559009,29.78668215,186.02,186.0,0.33]
[1753501559508,29.78668215,186.02,185.99,0.39]
[1753501559712,26.0,186.02,185.99,0.39]
[1753501560412,26.03,186.02,185.99,0.39]
[1753501562038,0.03,186.02,185.99,5.67768215]
[1753501562329,0.03,186.02,186.01,3.78668215]
[1753501562832,0.03,186.02,186.01,4.11668215]
[1753501567813,0.03,186.02,186.01,21.86545633]
[1753501568815,0.03,186.02,186.01,20.50003225]
[1753501571527,0.03,186.02,186.01,107.90003225]
[1753501584520,0.67,186.08,186.02,17.21116868]
[1753501584711,0.67,186.08,186.05,0.28432314]
[1753501584919,0.03,186.1,186.07,2.42125807]
[1753501585113,0.03,186.1,186.08,39.66125807]
[1753501585314,0.03,186.1,186.08,37.24]
[1753501585529,0.67,186.09,186.08,37.24]
[1753501597751,0.03,186.1,186.08,39.66125807]
[1753501597921,0.03,186.1,186.09,2.95863245]
[1753501599646,0.03,186.1,186.09,3.28863245]
[1753501600735,0.03,186.1,186.09,20.49980113]
[1753501601041,0.03,186.1,186.09,20.16980113]
[1753501601234,0.03,186.1,186.09,107.56980113]
[1753501604936,0.03,186.1,186.09,107.89980113]
[1753501606245,0.03,186.1,186.09,107.56980113]
[1753501613279,0.03,186.1,186.09,107.89980113]
[1753501613648,0.03,186.1,186.09,107.56980113]
[1753501618857,0.7,186.1,186.09,107.56980113]
[1753501619250,0.03,186.1,186.09,107.56980113]
[1753501620356,0.03,186.1,186.09,107.89980113]
[1753501620755,0.03,186.1,186.09,107.56980113]
[1753501621352,0.7,186.1,186.09,107.56980113]
[1753501621773,0.7,186.1,186.09,105.14854306]
[1753501622078,0.7,186.1,186.09,107.56980113]
[1753501622281,0.03,186.14,186.1,17.21116868]
[1753501622465,0.03,186.14,186.13,19.63242675]
[1753501624482,0.03,186.14,186.13,144.25242675]
[1753501625275,0.7,186.14,186.13,144.11026518]
[1753501626282,0.7,186.14,186.13,127.18341964]
[1753501627776,0.7,186.14,186.13,39.78341964]
[1753501632674,0.7,186.14,186.13,2.56341964]
[1753501632857,0.7,186.14,186.13,39.78341964]
[1753501634774,0.03,186.14,186.13,39.78341964]
[1753501635152,0.03,186.14,186.13,57.18242675]
[1753501635974,0.03,186.14,186.13,56.85242675]
[1753501637474,0.03,186.14,186.13,57.18242675]
[1753501638066,0.03,186.14,186.13,144.58242675]
[1753501638474,0.03,186.14,186.13,147.25108782]
[1753501640317,0.03,186.18,186.14,17.21116868]
[1753501640464,0.03,186.18,186.17,19.63242675]
[1753501640786,0.03,186.18,186.17,57.38957022]
[1753501643692,0.03,186.18,186.17,144.78957022]
[1753501643867,0.03,186.18,186.17,144.25242675]
[1753501645873,0.73,186.18,186.17,144.25242675]
[1753501648196,0.73,186.18,186.17,39.78341964]
[1753501648390,0.73,186.18,186.17,40.32056311]
[1753501653197,0.03,186.18,186.17,40.32056311]
[1753501653787,0.03,186.18,186.17,29.10056311]
[1753501653979,0.03,186.18,186.17,66.30056311]
[1753501654179,0.03,186.18,186.17,66.58488625]
[1753501654381,0.03,186.18,186.17,171.09957022]
[1753501654587,0.03,186.18,186.17,170.56242675]
[1753501656299,0.03,186.18,186.17,170.23242675]
[1753501656899,0.03,186.18,186.17,171.58757765]
[1753501658383,0.03,186.18,186.17,171.91757765]
[1753501659922,0.03,186.18,186.17,171.58757765]
[1753501662615,0.03,186.18,186.17,171.91757765]
[1753501666399,0.03,186.19,186.18,17.21116868]
[1753501666584,0.03,186.19,186.18,108.92469227]
[1753501666786,0.03,186.19,186.18,109.25469227]
[1753501668106,0.03,186.19,186.18,108.92469227]
[1753501671315,0.03,186.19,186.18,109.25469227]
[1753501673018,0.1,186.22,186.21,43.21116868]
[1753501673215,0.1,186.22,186.21,84.72460573]
[1753501675923,0.1,186.22,186.21,172.45460573]
[1753501676221,0.1,186.22,186.21,171.91757765]
[1753501677196,0.03,186.26,186.22,106.15306868]
[1753501677400,0.03,186.26,186.24,46.98757765]
[1753501677908,0.03,186.26,186.24,47.31757765]
[1753501678928,0.81,186.25,186.24,45.62530885]
[1753501679424,0.1,186.25,186.24,45.62530885]
[1753501681018,0.1,186.25,186.24,133.02530885]
[1753501683125,0.81,186.25,186.24,133.02530885]
[1753501684019,0.81,186.25,186.24,170.22530885]
[1753501684399,0.1,186.25,186.24,170.22530885]
[1753501686924,0.03,186.26,186.25,104.51116868]
[1753501687111,0.03,186.26,186.25,107.4622216]
[1753501688105,0.72,186.26,186.25,107.4622216]
[1753501688507,0.03,186.26,186.25,107.4622216]
[1753501689122,0.03,186.26,186.25,107.7922216]
[1753501689309,0.03,186.27,186.26,17.21116868]
[1753501689633,0.03,186.27,186.26,144.10530885]
[1753501690129,0.1,186.29,186.28,43.21116868]
[1753501690304,0.1,186.29,186.28,170.64213513]
[1753501690628,0.1,186.29,186.28,170.43530885]
[1753501690804,0.1,186.29,186.28,170.10530885]
[1753501691625,0.1,186.29,186.28,174.32527643]
[1753501692225,0.1,186.29,186.28,170.10530885]
[1753501692628,0.79,186.29,186.23,0.06]
[1753501692857,0.79,186.29,186.24,2.41414017]
[1753501693005,0.79,186.29,186.25,17.21116868]
[1753501693210,0.79,186.29,186.26,37.28]
[1753501697029,0.79,186.29,186.27,0.14216157]
[1753501697235,0.79,186.29,186.28,37.28]
[1753501698439,0.79,186.29,186.28,37.42216157]
[1753501700030,0.79,186.29,186.26,0.42648471]
[1753501700230,0.79,186.29,186.27,37.28]
[1753501704113,0.73,186.29,186.27,37.28]
[1753501704529,0.73,186.29,186.28,37.28]
[1753501710550,0.73,186.29,186.26,87.44216157]
[1753501710720,4.50456226,186.29,186.27,37.26]
[1753501710924,4.46456226,186.28,186.23,0.06]
[1753501711125,3.77456226,186.27,186.24,37.26]
[1753501711321,0.69,186.26,186.24,37.26]
[1753501713749,0.69,186.26,186.24,37.32]
[1753501717154,0.71,186.25,186.24,37.32]
[1753501725689,4.48456226,186.25,186.24,37.32]
[1753501733084,30.48456226,186.25,186.24,0.06]
[1753501733258,4.48456226,186.25,186.24,0.06]
[1753501733459,30.48456226,186.25,186.24,0.06]
[1753501734202,4.48456226,186.25,186.24,0.06]
[1753501737996,4.48456226,186.25,186.24,37.32]
[1753501741398,3.77456226,186.28,186.24,37.65]
[1753501741807,4.48456226,186.28,186.24,37.65]
[1753501742701,3.77456226,186.28,186.24,37.65]
[1753501742876,0.04,186.29,186.25,0.33]
[1753501743073,0.04,186.29,186.26,0.33]
[1753501743279,0.04,186.29,186.24,37.65]
[1753501743497,0.75,186.29,186.25,0.33]
[1753501744079,3.81456226,186.29,186.24,37.32]
[1753501744295,4.48456226,186.28,186.24,37.32]
[1753501745110,4.48456226,186.28,186.24,37.65]
[1753501748806,3.77456226,186.28,186.24,37.32]
[1753501749113,4.43456226,186.28,186.24,37.32]
[1753501750814,4.43456226,186.27,186.24,37.32]
[1753501751017,0.66,186.26,186.24,37.32]
[1753501752616,0.66,186.26,186.24,0.06]
[1753501752820,0.66,186.26,186.25,37.26]
[1753501754212,4.43456226,186.26,186.24,0.06]
[1753501754393,3.77456226,186.25,186.24,0.06]
[1753501754588,4.43456226,186.25,186.24,37.32]
[1753501755815,0.66,186.25,186.24,37.32]
[1753501756010,3.77456226,186.26,186.24,37.32]
[1753501756209,4.43456226,186.27,186.24,37.32]
[1753501756422,0.66,186.26,186.24,37.32]
[1753501756793,0.04,186.29,186.25,0.33]
[1753501757002,0.04,186.29,186.26,3.77456226]
[1753501757302,0.04,186.29,186.28,3.77456226]
[1753501757698,0.04,186.29,186.28,0.33]
[1753501757912,0.04,186.29,186.27,0.5368551]
[1753501758114,0.66,186.28,186.26,87.4]
[1753501758301,0.66,186.28,186.27,37.3]
[1753501758820,4.47456226,186.29,186.27,37.3]
[1753501760621,3.81456226,186.29,186.27,37.3]
[1753501760822,0.66,186.28,186.27,37.3]
[1753501763022,4.47456226,186.29,186.27,37.3]
[1753501763212,3.77456226,186.28,186.27,37.3]
[1753501764103,4.43456226,186.28,186.27,37.3]
[1753501764422,4.43456226,186.28,186.24,0.06]
[1753501764627,3.77456226,186.26,186.25,37.28]
[1753501764829,4.43456226,186.26,186.25,37.28]
[1753501765518,4.43456226,186.26,186.24,0.06]
[1753501765721,4.43456226,186.26,186.25,37.28]
[1753501765916,0.66,186.26,186.25,37.28]
[1753501768433,4.43456226,186.28,186.25,37.28]
[1753501768612,3.77456226,186.28,186.25,37.28]
[1753501768814,0.66,186.27,186.25,37.28]
[1753501770730,3.77456226,186.28,186.25,37.28]
[1753501770932,4.43456226,186.27,186.25,37.28]
[1753501771133,3.77456226,186.27,186.25,37.28]
[1753501771432,0.66,186.26,186.24,0.06]
[1753501771616,0.66,186.26,186.25,37.28]
[1753501772219,0.66,186.26,186.24,0.06]
[1753501772420,0.66,186.25,186.24,0.06]
[1753501772612,0.66,186.25,186.24,37.34]
[1753501772929,4.43456226,186.25,186.24,37.34]
[1753501774316,3.77456226,186.26,186.24,37.34]
[1753501774526,4.43456226,186.26,186.24,37.34]
[1753501776133,3.77456226,186.27,186.24,37.34]
[1753501776322,0.04,186.29,186.25,0.33]
[1753501777012,0.73,186.29,186.25,0.33]
[1753501777631,4.50456226,186.29,186.25,0.33]
[1753501777836,4.50456226,186.29,186.26,37.28]
[1753501778847,0.73,186.29,186.26,37.28]
[1753501779133,4.50456226,186.29,186.26,37.28]
[1753501779340,26.0,186.28,186.27,37.28]
[1753501779527,0.04,186.29,186.27,37.28]
[1753501779833,0.04,186.29,186.28,0.33]
[1753501781414,0.04,186.29,186.27,38.1468551]
[1753501782113,0.73,186.29,186.26,1.6457]
[1753501782313,0.73,186.29,186.28,37.28]
[1753501782513,0.04,186.29,186.28,37.28]
[1753501786318,0.04,186.29,186.28,41.38456226]
[1753501786745,0.04,186.29,186.28,37.26]
[1753501793720,0.04,186.29,186.28,37.59]
[1753501793951,0.04,186.29,186.28,41.50672383]
[1753501795148,0.04,186.29,186.28,37.40216157]
[1753501798737,0.04,186.29,186.28,37.93898785]
[1753501799454,0.04,186.29,186.28,146.51255722]
[1753501799631,0.04,186.29,186.28,142.20116868]
[1753501799834,0.04,186.29,186.28,145.97573094]
[1753501800040,0.04,186.29,186.28,146.03573094]
[1753501802239,0.04,186.29,186.28,108.77573094]
[1753501802558,0.04,186.29,186.28,109.31255722]
[1753501802752,0.04,186.29,186.28,146.59255722]
[1753501802924,0.04,186.29,186.28,145.72573094]
[1753501803331,0.04,186.29,186.28,146.05573094]
[1753501804249,0.03,186.3,186.29,25.15506868]
[1753501804454,0.03,186.3,186.29,33.53099066]
[1753501805036,0.03,186.3,186.29,29.7564284]
[1753501807152,0.03,186.3,186.29,29.4664284]
[1753501807378,0.03,186.3,186.29,92.33994369]
[1753501807662,0.03,186.3,186.29,92.7664284]
[1753501807847,0.03,186.3,186.29,93.0564284]
[1753501808239,0.03,186.3,186.29,180.4564284]
[1753501808440,0.03,186.3,186.29,179.91963094]
[1753501810467,0.03,186.3,186.29,179.62963094]
[1753501810754,0.03,186.3,186.29,142.32963094]
[1753501810960,0.03,186.3,186.29,149.85506868]
[1753501811162,0.03,186.3,186.29,153.62963094]
[1753501815357,0.03,186.3,186.29,153.91963094]
[1753501815557,0.03,186.33,186.32,42.78468397]
[1753501815760,0.03,186.33,186.32,84.80244197]
[1753501815963,0.03,186.33,186.32,172.20244197]
[1753501816137,0.03,186.33,186.32,171.95573094]
[1753501816851,0.03,186.33,186.32,134.38573094]
[1753501817170,0.03,186.33,186.32,171.68573094]
[1753501822858,0.03,186.33,186.32,134.38573094]
[1753501823057,0.03,186.33,186.32,171.66573094]
[1753501823658,0.03,186.33,186.32,134.38573094]
[1753501824054,0.03,186.33,186.32,171.66573094]
[1753501824477,0.03,186.33,186.32,171.95573094]
[1753501827175,0.71,186.39,186.37,16.78468397]
[1753501827376,0.71,186.39,186.38,55.02770693]
[1753501827675,0.71,186.39,186.38,58.80226919]
[1753501828374,6.022,186.46,186.39,17.21116868]
[1753501828698,0.71,186.41,186.4,58.12356937]
[1753501830705,0.71,186.41,186.39,87.54216157]
[1753501830913,0.71,186.41,186.4,37.28]
[1753501832571,0.71,186.41,186.4,58.26573094]
[1753501832808,0.71,186.43,186.41,17.21116868]
[1753501832989,0.71,186.43,186.42,37.40216157]
[1753501833181,27.5451,186.48,186.42,41.17672383]
[1753501833701,0.71,186.47,186.42,41.17672383]
[1753501835210,0.71,186.47,186.42,37.40216157]
[1753501835793,3.77456226,186.46,186.41,0.5364519]
[1753501836103,3.77456226,186.44,186.42,37.3]
[1753501836407,3.77456226,186.44,186.43,37.3]
[1753501836885,0.69,186.44,186.43,37.3]
[1753501838007,4.46456226,186.44,186.43,37.3]
[1753501839811,4.46456226,186.44,186.38,17.21116868]
[1753501840012,3.77456226,186.42,186.39,37.32]
[1753501840385,0.69,186.41,186.39,37.32]
[1753501840588,0.69,186.41,186.38,87.54216157]
[1753501840786,0.69,186.41,186.4,37.3]
[1753501841906,4.46456226,186.41,186.38,87.4]
[1753501842109,3.77456226,186.4,186.39,37.3]
[1753501842496,4.46456226,186.4,186.39,37.3]
[1753501844928,4.46456226,186.4,186.36,87.4]
[1753501845218,3.77456226,186.38,186.37,37.3]
[1753501845415,4.46456226,186.38,186.37,37.3]
[1753501845600,0.69,186.38,186.37,37.3]
[1753501847016,4.46456226,186.38,186.37,37.3]
[1753501847309,0.72,186.41,186.37,37.3]
[1753501847615,0.69,186.4,186.37,37.3]
[1753501849402,0.69,186.39,186.37,37.3]
[1753501852115,3.80456226,186.41,186.37,37.3]
[1753501852317,0.69,186.4,186.37,37.3]
[1753501854110,3.80456226,186.41,186.37,37.3]
[1753501854111,0.69,186.39,186.37,37.3]
[1753501854416,3.80456226,186.41,186.37,37.3]
[1753501854588,0.69,186.4,186.37,37.3]
[1753501854792,0.69,186.39,186.37,37.3]
[1753501855600,0.69,186.4,186.37,37.3]
[1753501856019,0.69,186.39,186.37,37.3]
[1753501858036,3.80456226,186.41,186.37,37.3]
[1753501858324,0.69,186.4,186.37,37.3]
[1753501861225,3.80456226,186.41,186.37,37.3]
[1753501861430,4.49456226,186.41,186.37,37.3]
[1753501861604,0.69,186.4,186.37,37.3]
[1753501862304,0.03,186.41,186.37,37.59]
[1753501862818,0.03,186.41,186.37,37.3]
[1753501863014,0.72,186.41,186.37,37.3]
[1753501863722,0.03,186.41,186.37,37.3]
[1753501863918,0.03,186.41,186.38,0.29]
[1753501864123,0.03,186.41,186.39,37.28]
[1753501864323,0.72,186.41,186.39,37.28]
[1753501865229,0.69,186.4,186.39,37.28]
[1753501867710,0.72,186.4,186.39,37.28]
[1753501873534,4.49456226,186.4,186.39,37.28]
[1753501873710,4.49456226,186.4,186.33,0.06]
[1753501873908,0.66,186.39,186.34,37.26]
[1753501874228,0.03,186.4,186.35,21.27573094]
[1753501874430,0.03,186.4,186.36,37.28]
[1753501874820,0.03,186.4,186.36,37.57]
[1753501875218,0.69,186.4,186.36,37.57]
[1753501877016,0.03,186.4,186.37,0.29]
[1753501877839,0.03,186.4,186.37,0.43216157]
[1753501879432,0.03,186.4,186.37,0.14216157]
[1753501879623,0.03,186.4,186.38,0.43216157]
[1753501879918,0.03,186.4,186.39,37.55]
[1753501882538,0.03,186.4,186.39,37.69216157]
[1753501882849,0.03,186.4,186.39,38.22867103]
[1753501884146,0.03,186.4,186.39,57.71016211]
[1753501887752,0.03,186.4,186.39,145.11016211]
[1753501887935,0.03,186.4,186.39,144.57365265]
[1753501889434,0.03,186.4,186.39,144.28365265]
[1753501890037,0.03,186.4,186.39,141.87116868]
[1753501891359,0.03,186.4,186.39,144.28365265]
[1753501892452,0.03,186.4,186.39,144.05865265]
[1753501893160,0.03,186.4,186.39,141.64616868]
[1753501895452,0.03,186.4,186.39,144.05865265]
[1753501899859,0.03,186.4,186.39,141.64616868]
[1753501900059,0.03,186.4,186.39,144.05865265]
[1753501900763,0.03,186.4,186.39,141.64616868]
[1753501902371,0.69,186.4,186.39,141.64616868]
[1753501902860,0.03,186.4,186.39,141.64616868]
[1753501905772,0.69,186.4,186.39,141.64616868]
[1753501907171,0.03,186.4,186.39,141.64616868]
[1753501908475,0.03,186.4,186.39,144.05865265]
[1753501909474,0.03,186.4,186.39,141.64616868]
[1753501909669,0.03,186.4,186.39,144.05865265]
[1753501910455,0.03,186.4,186.39,144.34865265]
[1753501911256,0.03,186.4,186.39,144.05865265]
[1753501913484,0.03,186.4,186.39,144.34865265]
[1753501916265,0.03,186.4,186.39,144.05865265]
[1753501918122,0.03,186.4,186.39,149.60874734]
[1753501920898,0.03,186.4,186.39,149.89874734]
[1753501921500,0.03,186.4,186.39,149.60874734]
[1753501923595,0.69,186.4,186.39,149.60874734]
[1753501924371,0.69,186.4,186.39,149.58874734]
[1753501925473,0.69,186.4,186.39,146.74977866]
[1753501925694,0.69,186.4,186.39,109.54977866]
[1753501925885,0.69,186.4,186.39,146.89194023]
[1753501926191,0.69,186.4,186.39,147.17626337]
[1753501928685,0.69,186.4,186.39,124.6]
[1753501929578,0.69,186.4,186.39,37.2]
[1753501931296,0.69,186.4,186.39,37.26]
[1753501933078,0.69,186.4,186.39,0.06]
[1753501933079,3.10248397,186.4,186.39,0.06]
[1753501933285,3.10248397,186.4,186.39,37.26]
[1753501933984,8.46729083,186.4,186.39,37.26]
[1753501934377,9.96869083,186.4,186.39,37.26]
[1753501934584,19.61862671,186.4,186.39,37.26]
[1753501935691,9.96869083,186.4,186.39,37.26]
[1753501936475,19.61862671,186.4,186.39,37.26]
[1753501937286,23.22869108,186.4,186.39,37.26]
[1753501938197,19.61862671,186.4,186.39,37.26]
[1753501938983,36.63876896,186.4,186.35,0.06]
[1753501939284,2.41248397,186.36,186.35,0.06]
[1753501939491,2.41248397,186.36,186.35,37.28]
[1753501939686,3.10248397,186.36,186.35,37.28]
[1753501940384,8.46844233,186.36,186.35,37.28]
[1753501940619,3.10248397,186.36,186.35,37.28]
[1753501941708,2.41248397,186.36,186.35,37.28]
[1753501942201,2.41248397,186.37,186.35,37.28]
[1753501942781,3.10248397,186.37,186.35,37.28]
[1753501945020,3.10248397,186.36,186.35,37.28]
[1753501952003,2.41248397,186.36,186.35,37.28]
[1753501952687,6.89623727,186.4,186.35,42.93621169]
[1753501952688,2.41248397,186.38,186.35,42.93621169]
[1753501952992,2.41248397,186.39,186.35,42.93621169]
[1753501953912,2.41248397,186.38,186.35,42.93621169]
[1753501955311,2.41248397,186.38,186.35,42.64621169]
[1753501958205,3.12248397,186.38,186.35,42.64621169]
[1753501958401,3.12248397,186.37,186.35,37.28]
[1753501958591,0.71,186.36,186.35,37.28]
[1753501959920,3.12248397,186.36,186.35,37.28]
[1753501960119,3.12248397,186.36,186.35,37.3]
[1753501962297,0.71,186.36,186.35,37.3]
[1753501967595,6.07543847,186.38,186.35,37.3]
[1753501967800,3.12248397,186.37,186.35,37.3]
[1753501968337,0.71,186.36,186.35,37.3]
[1753501969717,3.12248397,186.36,186.35,37.3]
[1753501970218,0.71,186.36,186.35,37.3]
[1753501971517,0.71,186.37,186.35,37.3]
[1753501971816,3.12248397,186.37,186.35,37.3]
[1753501975210,0.71,186.37,186.35,37.3]
[1753501978219,2.41248397,186.38,186.35,42.66624259]
[1753501978425,0.03,186.39,186.36,0.29]
[1753501978729,3.12248397,186.38,186.37,37.22]
[1753501982129,8.48786652,186.38,186.37,37.22]
[1753501982430,0.71,186.38,186.37,37.22]
[1753501982725,3.12248397,186.38,186.37,37.22]
[1753501984425,8.48786652,186.38,186.37,37.22]
[1753501985126,6.07538255,186.38,186.37,37.22]
[1753501985324,3.12248397,186.38,186.37,37.22]
[1753501985730,8.48786652,186.38,186.37,37.22]
[1753501990538,3.12248397,186.38,186.37,37.22]
[1753501990936,0.71,186.38,186.37,37.22]
[1753501991120,3.12248397,186.38,186.37,37.22]
[1753501991327,8.48786652,186.38,186.37,37.22]
[1753502000447,8.48786652,186.38,186.35,0.06]
[1753502000626,7.77844233,186.36,186.35,0.06]
[1753502001626,8.48844233,186.36,186.35,0.06]
[1753502012935,12.10807308,186.36,186.35,0.06]
[1753502022857,6.74211472,186.36,186.35,0.06]
[1753502023061,8.48844233,186.36,186.35,0.06]
[1753502023361,8.45844233,186.36,186.35,0.06]
[1753502024170,12.07213872,186.36,186.35,0.06]
[1753502025062,26.0,186.34,186.33,0.06]
[1753502025262,32.02618036,186.34,186.31,0.06]
[1753502025574,2.41248397,186.32,186.31,0.06]
[1753502026073,3.09248397,186.32,186.31,0.06]
[1753502026749,8.45959431,186.32,186.31,0.06]
[1753502027369,60.89421416,186.32,186.31,0.06]
[1753502027567,38.50791055,186.32,186.31,0.06]
[1753502028260,12.0732907,186.32,186.31,0.06]
[1753502028779,8.45959431,186.32,186.31,0.06]
[1753502033174,25.24427828,186.32,186.31,0.06]
[1753502033356,28.85180377,186.32,186.31,0.06]
[1753502034177,12.0671198,186.32,186.31,0.06]
[1753502034494,8.45959431,186.32,186.31,0.06]
[1753502035252,34.45959431,186.32,186.31,0.06]
[1753502035454,8.45959431,186.32,186.31,0.06]
[1753502038777,34.45959431,186.32,186.31,0.06]
[1753502038984,12.06416522,186.32,186.31,0.06]
[1753502039168,8.45959431,186.32,186.31,0.06]
[1753502041476,34.45959431,186.32,186.31,0.06]
[1753502041685,12.06416522,186.32,186.31,0.06]
[1753502041984,8.45959431,186.32,186.31,0.06]
[1753502043367,7.77959431,186.32,186.31,0.06]
[1753502043573,8.45959431,186.32,186.31,0.06]
[1753502049682,34.45959431,186.32,186.31,0.06]
[1753502049865,12.06416522,186.32,186.31,0.06]
[1753502050067,8.45959431,186.32,186.31,0.06]